[Event "4th ChessMates Murmansk 2020"]
[Site "Murmansk"]
[Date "2020.03.13"]
[Round "2.7"]
[White "Blokhin, Sofia"]
[Black "Baranov, Ivan"]
[Result "1-0"]
[ECO "B32"]
[WhiteElo "1854"]
[BlackElo "1671"]
[Annotator "NA RC"]
[PlyCount "77"]
[EventDate "2020.03.13"]
[EventType "team-tourn"]
[EventCountry "RUS"]
[SourceTitle "playchess.com"]
[Source "ChessBase"]
[SourceQuality "1"]
[TimeControl "5400+30"]

1. e4 {[%emt 0:00:00]} c5 {[%emt 0:00:00]} 2. Nf3 {[%emt 0:00:00]} Nc6 {[%emt 0:00:00]} 3. d4 {[%emt 0:00:00]} cxd4 {[%emt 0:00:00]} 4. Nxd4 {[%emt 0:00:00]} e5 {[%emt 0:00:00]} 5. Nb5 {[%emt 0:00:09]} d6 {[%emt 0:00:00]} 6. N1c3 {[%emt 0:00:14]} a6 {[%emt 0:00:00]} 7. Na3 {[%emt 0:00:09]} b5 {[%emt 0:00:00]} 8. Nd5 {[%emt 0:00:10]} Nge7 {[%emt 0:00:06]} 9. c4 {[%emt 0:02:00]} Nxd5 {[%emt 0:00:06]} 10. exd5 {[%emt 0:03:33]} Nd4 {[%emt 0:00:44]} 11. cxb5 {[%emt 0:02:36]} Be7 {[%emt 0:01:23]} 12. bxa6 {[%emt 0:02:52] B32: Sicilian: Löwenthal and Kalashnikov Variations.} O-O {[%emt 0:02:02]} 13. Bc4 {[%emt 0:02:07]} Bxa6 {[%emt 0:02:03]} 14. O-O {[%emt 0:04:16] [#]} Bxc4 $146 {[%emt 0:06:11]} ({Predecessor:} 14... Qb6 15. b3 Qc5 16. Bb2 Rfb8 17. Qd3 Bxc4 18. Nxc4 Qxd5 19. Rfd1 Bf6 20. Ne3 Qe6 {1-0 (66) Areshchenko,A (2625)-Maze,S (2494) Aarhus 2005}) 15. Nxc4 {[%emt 0:00:09]} Qc7 {[%emt 0:00:18]} 16. Ne3 {[%emt 0:01:53]} f5 {[%emt 0:02:07]} 17. f4 {[%emt 0:01:39]} Bf6 {[%emt 0:05:59]} 18. fxe5 {[%emt 0:01:52]} Bxe5 {[%emt 0:00:28]} 19. Bd2 {[%emt 0:02:22]} f4 {[%emt 0:22:42]} 20. Ng4 {[%emt 0:02:12]} Qb6 {[%emt 0:00:46]} 21. Rf2 {[%emt 0:05:26]} f3 {[%emt 0:11:31]} 22. Be3 {[%emt 0:03:22]} fxg2 {[%emt 0:03:27]} 23. Rxg2 {[%emt 0:00:26]} Kh8 {[%emt 0:08:56]} 24. Rd2 {[%emt 0:02:00]} Nf3+ $2 {[%emt 0:10:36]} (24... h5 $16) 25. Qxf3 {[%emt 0:01:48]} Qb4 {[%emt 0:08:55]} 26. Qg2 {[%emt 0:01:40]} Bf4 {[%emt 0:01:34]} 27. Rc1 {[%emt 0:04:03]} h5 {[%emt 0:04:19]} 28. a3 {[%emt 0:02:41]} Bxe3+ {[%emt 0:05:54]} 29. Nxe3 {[%emt 0:00:20]} Qf4 {[%emt 0:00:35]} 30. Qg3 {[%emt 0:01:32]} Qh6 {[%emt 0:00:50]} 31. Rg2 {[%emt 0:03:13]} h4 {[%emt 0:01:54]} 32. Qg5 {[%emt 0:00:48]} Kh7 {[%emt 0:00:59] [#]} 33. Rc7 $1 {[%emt 0:00:46]} Qxg5 {[%emt 0:00:55]} 34. Rxg5 {[%emt 0:00:12]} Rae8 {[%emt 0:00:25]} 35. Rcxg7+ {[%emt 0:01:32]} Kh8 {[%emt 0:00:17]} 36. R7g6 {[%emt 0:00:38]} Kh7 {[%emt 0:00:15]} 37. Ng4 {[%emt 0:01:01]} Re1+ {[%emt 0:01:05]} 38. Kg2 {[%emt 0:00:08]} Re2+ {[%emt 0:00:11]} 39. Kh3 {[%emt 0:00:09]} 1-0

[Event "4th ChessMates Murmansk 2020"]
[Site "Murmansk"]
[Date "2020.03.13"]
[Round "2.8"]
[White "Chervyakova, Tatiana"]
[Black "Smirnova, Jekaterina"]
[Result "1/2-1/2"]
[ECO "E10"]
[WhiteElo "1489"]
[BlackElo "1439"]
[Annotator "NA RC"]
[PlyCount "89"]
[EventDate "2020.03.13"]
[EventType "team-tourn"]
[EventCountry "RUS"]
[SourceTitle "playchess.com"]
[Source "ChessBase"]
[SourceQuality "1"]
[TimeControl "5400+30"]

1. d4 {[%emt 0:00:00]} Nf6 {[%emt 0:00:00]} 2. c4 {[%emt 0:00:00]} e6 {[%emt 0:00:00]} 3. Nf3 {[%emt 0:00:03]} c5 {[%emt 0:00:00]} 4. e3 {[%emt 0:00:05]} Be7 {[%emt 0:03:37]} 5. Be2 {[%emt 0:00:07]} O-O {[%emt 0:01:46]} 6. O-O {[%emt 0:00:21]} d5 {[%emt 0:01:05]} 7. Nc3 {[%emt 0:00:53]} cxd4 {[%emt 0:00:39]} 8. exd4 {[%emt 0:01:31]} Nc6 {[%emt 0:00:19]} 9. h3 {[%emt 0:01:27]} dxc4 {[%emt 0:00:27]} 10. Bxc4 {[%emt 0:00:59]} Nd5 {[%emt 0:00:50]} 11. Bd2 {[%emt 0:04:48]} Nb6 {[%emt 0:07:37]} 12. Bb5 {[%emt 0:00:58]} Nxd4 {[%emt 0:09:22]} 13. Nxd4 {[%emt 0:00:37]} Qxd4 {[%emt 0:00:05]} 14. Be3 {[%emt 0:00:27]} Qb4 {[%emt 0:01:28]} 15. Bxb6 {[%emt 0:01:07]} axb6 {[%emt 0:00:11]} 16. Qe2 {[%emt 0:01:27]} Bf6 {[%emt 0:01:36]} 17. a3 {[%emt 0:00:47]} Qe7 {[%emt 0:00:28]} 18. Rac1 {[%emt 0:04:00]} Rd8 {[%emt 0:02:14]} 19. Rfd1 {[%emt 0:02:21]} Bd7 {[%emt 0:02:07]} 20. Ne4 {[%emt 0:02:26]} Bxb5 {[%emt 0:03:01]} 21. Nxf6+ {[%emt 0:03:41]} Qxf6 {[%emt 0:00:10]} 22. Qxb5 {[%emt 0:00:16]} Rxd1+ {[%emt 0:01:30]} 23. Rxd1 {[%emt 0:00:37]} Rd8 {[%emt 0:01:02]} 24. Rd7 {[%emt 0:02:50]} Rxd7 {[%emt 0:00:55]} 25. Qxd7 {[%emt 0:00:10]} g6 {[%emt 0:00:09]} 26. Qxb7 {[%emt 0:01:33]} Qxb2 {[%emt 0:00:12]} 27. Qb8+ {[%emt 0:00:48]} Kg7 {[%emt 0:00:06]} 28. a4 {[%emt 0:02:51]} Qd4 {[%emt 0:01:30]} 29. Qc7 {[%emt 0:04:40]} Qd1+ {[%emt 0:03:21]} 30. Kh2 {[%emt 0:00:21]} Qxa4 {[%emt 0:00:36]} 31. Qxb6 {[%emt 0:01:58]} Qf4+ {[%emt 0:00:16]} 32. g3 {[%emt 0:00:49]} Qd2 {[%emt 0:00:16]} 33. Qc5 {[%emt 0:02:10]} Qb2 {[%emt 0:01:03]} 34. Qe3 {[%emt 0:03:48]} e5 {[%emt 0:05:49]} 35. Kg2 {[%emt 0:02:43]} Qb7+ {[%emt 0:00:18]} 36. Kh2 {[%emt 0:00:29]} Qd5 {[%emt 0:01:34]} 37. Qa3 {[%emt 0:06:33]} Qd2 {[%emt 0:08:12]} 38. Kg2 {[%emt 0:01:09]} Qd5+ {[%emt 0:02:54]} 39. Kh2 {[%emt 0:00:34]} Qd4 {[%emt 0:00:32]} 40. Kg2 {[%emt 0:01:44]} h5 {[%emt 0:01:20]} 41. h4 {[%emt 0:04:27]} Qd7 {[%emt 0:05:08]} 42. Qc5 {[%emt 0:03:35]} Qd4 {[%emt 0:01:36]} 43. Qa3 {[%emt 0:06:15]} Qd5+ {[%emt 0:00:15]} 44. Kh2 {[%emt 0:00:12]} Qd7 {[%emt 0:00:06]} 45. Kg2 {[%emt 0:06:10]} 1/2-1/2

[Event "4th ChessMates Murmansk 2020"]
[Site "Murmansk"]
[Date "2020.03.13"]
[Round "2.9"]
[White "Mertins, Ostap"]
[Black "Filimonov, Viktor"]
[Result "0-1"]
[ECO "B11"]
[WhiteElo "1375"]
[BlackElo "1481"]
[Annotator "NA"]
[PlyCount "114"]
[EventDate "2020.03.13"]
[EventType "team-tourn"]
[EventCountry "RUS"]
[SourceTitle "playchess.com"]
[Source "ChessBase"]
[SourceQuality "1"]
[TimeControl "5400+30"]

1. e4 {[%emt 0:00:00]} c6 {[%emt 0:00:00]} 2. Nf3 {[%emt 0:00:00]} d5 {[%emt 0:00:00]} 3. Nc3 {[%emt 0:00:00]} Bg4 {[%emt 0:00:19]} 4. h3 {[%emt 0:01:01]} Bxf3 {[%emt 0:00:25]} 5. Qxf3 {[%emt 0:00:13]} e6 {[%emt 0:00:50]} 6. exd5 {[%emt 0:03:10]} cxd5 {[%emt 0:00:19]} 7. d4 {[%emt 0:02:07]} Nc6 {[%emt 0:00:31]} 8. Bb5 {[%emt 0:04:55]} Nf6 {[%emt 0:03:00]} 9. O-O {[%emt 0:02:33]} Be7 {[%emt 0:00:37]} 10. Qg3 {[%emt 0:06:10]} O-O {[%emt 0:03:58]} 11. Bh6 {[%emt 0:03:42]} Ne8 {[%emt 0:00:18]} 12. Bxc6 {[%emt 0:03:36]} bxc6 {[%emt 0:00:49]} 13. Bf4 {[%emt 0:04:30]} Nd6 {[%emt 0:01:39]} 14. Bxd6 {[%emt 0:04:35]} Bxd6 {[%emt 0:00:22]} 15. Qe3 {[%emt 0:03:52]} Rb8 {[%emt 0:01:00]} 16. b3 {[%emt 0:01:31]} Qc7 {[%emt 0:02:04]} 17. a4 {[%emt 0:05:48]} e5 {[%emt 0:02:03]} 18. dxe5 {[%emt 0:07:39]} Bxe5 {[%emt 0:00:21]} 19. Rae1 {[%emt 0:02:15]} Rfe8 {[%emt 0:02:36]} 20. f4 {[%emt 0:04:39]} Bd6 {[%emt 0:02:41]} 21. Qxe8+ {[%emt 0:01:44]} Rxe8 {[%emt 0:00:07]} 22. Rxe8+ {[%emt 0:00:06]} Bf8 {[%emt 0:00:04]} 23. g3 {[%emt 0:04:43]} f6 {[%emt 0:00:55]} 24. Rfe1 {[%emt 0:01:59]} Kf7 {[%emt 0:01:05]} 25. Na2 {[%emt 0:03:16]} Qb6+ {[%emt 0:01:31]} 26. Kg2 {[%emt 0:00:38]} Qc5 {[%emt 0:00:58]} 27. R8e2 {[%emt 0:00:54]} d4 {[%emt 0:01:26]} 28. Nc1 {[%emt 0:01:30]} Qd5+ {[%emt 0:01:14]} 29. Kh2 {[%emt 0:00:51]} Bb4 {[%emt 0:01:26]} 30. Rf1 {[%emt 0:01:42]} Bd6 {[%emt 0:02:49]} 31. Nd3 {[%emt 0:00:50]} c5 {[%emt 0:01:21]} 32. Nb2 {[%emt 0:01:38]} g5 {[%emt 0:06:07]} 33. Nc4 {[%emt 0:03:01]} Bf8 {[%emt 0:05:07]} 34. fxg5 {[%emt 0:01:05]} Qxg5 {[%emt 0:00:20]} 35. Ne5+ {[%emt 0:00:47]} Kg7 {[%emt 0:01:01]} 36. Ng4 {[%emt 0:03:49]} f5 {[%emt 0:04:24]} 37. Ne5 {[%emt 0:04:22]} Bd6 {[%emt 0:01:01]} 38. Rg1 {[%emt 0:02:35]} h5 {[%emt 0:09:40]} 39. Nc4 {[%emt 0:00:57]} Bc7 {[%emt 0:02:41]} 40. Re6 {[%emt 0:00:56]} Kf7 {[%emt 0:03:41]} 41. Rc6 {[%emt 0:02:38]} Qe7 {[%emt 0:00:40]} 42. Rh6 {[%emt 0:00:59]} Kg7 {[%emt 0:00:18]} 43. Ra6 {[%emt 0:03:12]} h4 {[%emt 0:01:00]} 44. a5 hxg3+ {[%emt 0:01:33]} 45. Rxg3+ {[%emt 0:03:41]} Bxg3+ {[%emt 0:01:12]} 46. Kxg3 {[%emt 0:00:15]} Qb7 {[%emt 0:03:36]} 47. Re6 {[%emt 0:01:01]} Qd7 {[%emt 0:03:05]} 48. Re1 {[%emt 0:01:10]} Kf6 {[%emt 0:01:02]} 49. Kf4 {[%emt 0:00:59]} Qh7 {[%emt 0:01:03]} 50. Kg3 {[%emt 0:00:39]} Qg6+ {[%emt 0:00:59]} 51. Kf3 {[%emt 0:00:26]} Qh5+ {[%emt 0:00:08]} 52. Kg3 {[%emt 0:00:17]} f4+ {[%emt 0:00:27]} 53. Kh2 {[%emt 0:00:24]} Qh4 {[%emt 0:00:49]} 54. Rg1 {[%emt 0:00:45]} f3 {[%emt 0:00:45]} 55. Rf1 {[%emt 0:00:27]} Qf4+ {[%emt 0:00:18]} 56. Kh1 {[%emt 0:00:19]} Qg3 {[%emt 0:00:09]} 57. Nd2 {[%emt 0:01:05]} Qg2# 0-1

[Event "4th ChessMates Murmansk 2020"]
[Site "Murmansk"]
[Date "2020.03.13"]
[Round "2.14"]
[White "Mamoshin, Oleg"]
[Black "Vetrov, Ivan"]
[Result "1/2-1/2"]
[ECO "B19"]
[WhiteElo "1648"]
[BlackElo "1799"]
[Annotator "NA"]
[PlyCount "66"]
[EventDate "2020.03.13"]
[EventType "team-tourn"]
[EventCountry "RUS"]
[SourceTitle "playchess.com"]
[Source "ChessBase"]
[SourceQuality "1"]
[TimeControl "5400+30"]

1. e4 {[%emt 0:00:00]} c6 {[%emt 0:00:00]} 2. d4 {[%emt 0:00:00]} d5 {[%emt 0:00:00]} 3. Nc3 {[%emt 0:00:00]} dxe4 {[%emt 0:00:00]} 4. Nxe4 {[%emt 0:00:00]} Bf5 {[%emt 0:00:05]} 5. Ng3 {[%emt 0:00:00]} Bg6 {[%emt 0:00:04]} 6. h4 {[%emt 0:00:00]} h6 {[%emt 0:00:05]} 7. Nf3 {[%emt 0:00:04]} Nd7 {[%emt 0:00:06]} 8. h5 {[%emt 0:00:05]} Bh7 {[%emt 0:00:04]} 9. Bd3 {[%emt 0:00:04]} Bxd3 {[%emt 0:00:05]} 10. Qxd3 {[%emt 0:00:05]} e6 {[%emt 0:00:04]} 11. Bd2 {[%emt 0:01:17]} Ngf6 {[%emt 0:00:03]} 12. Ne4 {[%emt 0:02:15]} Nxe4 {[%emt 0:01:50]} 13. Qxe4 {[%emt 0:00:05]} Nf6 {[%emt 0:00:30]} 14. Qe2 {[%emt 0:00:17]} Qd5 {[%emt 0:02:49]} 15. Qe5 {[%emt 0:15:10]} Bd6 {[%emt 0:03:20]} 16. Qxd5 {[%emt 0:00:11]} cxd5 {[%emt 0:00:02]} 17. Ne5 {[%emt 0:08:37]} Ke7 {[%emt 0:03:46]} 18. f3 {[%emt 0:03:26]} Rac8 {[%emt 0:01:55]} 19. Rc1 {[%emt 0:04:47]} Nd7 {[%emt 0:02:54]} 20. Nxd7 {[%emt 0:05:10]} Kxd7 {[%emt 0:00:02]} 21. Ke2 {[%emt 0:00:07]} Rc4 {[%emt 0:03:25]} 22. Kd3 {[%emt 0:03:58]} Be7 {[%emt 0:03:58]} 23. b3 {[%emt 0:03:45]} Rc6 {[%emt 0:01:13]} 24. c4 {[%emt 0:01:30]} dxc4+ {[%emt 0:11:29]} 25. Rxc4 {[%emt 0:00:16]} Rhc8 {[%emt 0:02:59]} 26. Rhc1 {[%emt 0:02:03]} f5 {[%emt 0:02:19]} 27. Bf4 {[%emt 0:03:55]} Bf6 {[%emt 0:17:36]} 28. Be5 {[%emt 0:08:08]} Bxe5 {[%emt 0:02:46]} 29. dxe5 {[%emt 0:00:05]} Rxc4 {[%emt 0:00:23]} 30. Rxc4 {[%emt 0:00:13]} Rxc4 {[%emt 0:02:44]} 31. Kxc4 {[%emt 0:01:47]} Kc6 {[%emt 0:00:40]} 32. b4 {[%emt 0:00:51]} a6 {[%emt 0:01:26]} 33. a4 {[%emt 0:00:41]} b5+ {[%emt 0:01:33]} 1/2-1/2

[Event "4th ChessMates Murmansk 2020"]
[Site "Murmansk"]
[Date "2020.03.13"]
[Round "2.15"]
[White "Zhuravlev, Aleksandr"]
[Black "Khripachenko, Alexander"]
[Result "1/2-1/2"]
[ECO "B90"]
[WhiteElo "2059"]
[BlackElo "1773"]
[Annotator "ChessBase"]
[PlyCount "78"]
[EventDate "2020.03.13"]
[EventType "team-tourn"]
[EventCountry "RUS"]
[SourceTitle "playchess.com"]
[Source "ChessBase"]
[SourceQuality "1"]
[TimeControl "5400+30"]

1. e4 {[%emt 0:00:00]} c5 {[%emt 0:00:00]} 2. Nf3 {[%emt 0:00:00]} d6 {[%emt 0:00:00]} 3. d4 {[%emt 0:00:00]} Nf6 {[%emt 0:00:00]} 4. Nc3 {[%emt 0:00:00]} cxd4 {[%emt 0:00:00]} 5. Nxd4 {[%emt 0:00:00]} a6 {[%emt 0:00:00]} 6. Be3 {[%emt 0:00:00]} e6 {[%emt 0:00:00]} 7. Bd3 {[%emt 0:05:02]} Be7 {[%emt 0:00:22]} 8. O-O {[%emt 0:01:31]} Qc7 {[%emt 0:01:59]} 9. Kh1 {[%emt 0:07:16]} b5 {[%emt 0:01:00]} 10. f4 {[%emt 0:00:55]} Bb7 {[%emt 0:00:34]} 11. Qf3 {[%emt 0:02:34]} Nbd7 {[%emt 0:01:29]} 12. Rae1 {[%emt 0:01:30]} b4 {[%emt 0:05:13]} 13. Nb1 {[%emt 0:02:11]} O-O {[%emt 0:02:00]} 14. Nd2 {[%emt 0:02:51]} Nc5 {[%emt 0:01:37]} 15. Bg1 {[%emt 0:03:34]} Na4 {[%emt 0:12:27]} 16. Rb1 {[%emt 0:02:37]} Nc5 {[%emt 0:01:58]} 17. Qe2 {[%emt 0:02:12]} Rac8 {[%emt 0:01:53]} 18. N4b3 {[%emt 0:01:11]} Nxd3 {[%emt 0:01:39]} 19. cxd3 {[%emt 0:00:07]} d5 {[%emt 0:01:15]} 20. e5 {[%emt 0:00:36]} Nd7 {[%emt 0:00:10]} 21. Rbc1 {[%emt 0:04:42]} Qb8 {[%emt 0:00:52]} 22. Bd4 {[%emt 0:02:17]} Rxc1 {[%emt 0:01:44]} 23. Rxc1 {[%emt 0:00:07]} Rc8 {[%emt 0:00:08]} 24. Qe1 {[%emt 0:00:13]} Bc6 {[%emt 0:04:20]} 25. Nc5 {[%emt 0:02:33]} Bb5 {[%emt 0:02:05]} 26. Nxd7 {[%emt 0:01:50]} Bxd7 {[%emt 0:00:17]} 27. Nb3 {[%emt 0:00:36]} Ba4 28. Rxc8+ {[%emt 0:02:25]} Qxc8 {[%emt 0:07:41]} 29. Qc1 {[%emt 0:00:40]} Qxc1+ {[%emt 0:01:10]} 30. Nxc1 g5 31. g3 {[%emt 0:00:58]} gxf4 {[%emt 0:00:32]} 32. gxf4 {[%emt 0:00:03]} Kg7 {[%emt 0:00:31]} 33. b3 {[%emt 0:04:18]} Bb5 {[%emt 0:00:09]} 34. Kg2 {[%emt 0:00:05]} Kg6 {[%emt 0:00:06]} 35. Kf3 {[%emt 0:00:30]} Kf5 {[%emt 0:00:45]} 36. Bb6 {[%emt 0:01:03]} f6 {[%emt 0:03:40]} 37. Bd4 {[%emt 0:04:45]} fxe5 {[%emt 0:00:23]} 38. Bxe5 {[%emt 0:00:05]} Bc5 {[%emt 0:01:50]} 39. h3 {[%emt 0:01:37]} h5 {[%emt 0:00:25]} 1/2-1/2

[Event "4th ChessMates Murmansk 2020"]
[Site "Murmansk"]
[Date "2020.03.13"]
[Round "2.16"]
[White "Morar, Kirill"]
[Black "Kataev, Aleksandr"]
[Result "0-1"]
[ECO "B32"]
[WhiteElo "1271"]
[BlackElo "1978"]
[Annotator "ChessBase"]
[PlyCount "72"]
[EventDate "2020.03.13"]
[EventType "team-tourn"]
[EventCountry "RUS"]
[SourceTitle "playchess.com"]
[Source "ChessBase"]
[SourceQuality "1"]
[TimeControl "5400+30"]

1. e4 {[%emt 0:00:00]} c5 {[%emt 0:00:00]} 2. Nf3 {[%emt 0:00:00]} Nc6 {[%emt 0:00:00]} 3. d4 {[%emt 0:00:00]} cxd4 {[%emt 0:00:00]} 4. Nxd4 {[%emt 0:00:00]} e5 {[%emt 0:00:00]} 5. Nb3 {[%emt 0:01:21]} d6 {[%emt 0:00:13]} 6. Nc3 {[%emt 0:00:41]} Nf6 {[%emt 0:04:30]} 7. Bg5 {[%emt 0:00:23]} Be7 {[%emt 0:01:39]} 8. Bxf6 {[%emt 0:02:49]} Bxf6 {[%emt 0:00:13]} 9. Nd5 {[%emt 0:00:41]} O-O {[%emt 0:01:08]} 10. Qf3 {[%emt 0:07:17]} Be7 {[%emt 0:01:38]} 11. Bc4 {[%emt 0:00:41]} Kh8 {[%emt 0:02:10]} 12. O-O {[%emt 0:20:58]} f5 {[%emt 0:12:37]} 13. Rad1 {[%emt 0:05:32]} fxe4 {[%emt 0:03:12]} 14. Qxe4 {[%emt 0:01:22]} Bf5 {[%emt 0:00:18]} 15. Qe2 {[%emt 0:00:09]} Bg5 {[%emt 0:11:53]} 16. Ne3 {[%emt 0:02:48]} Bg6 {[%emt 0:01:12]} 17. Qd2 {[%emt 0:01:34]} Rf6 {[%emt 0:08:42]} 18. c3 {[%emt 0:02:24]} Qe8 {[%emt 0:14:24]} 19. Qd5 {[%emt 0:01:24]} Rd8 {[%emt 0:01:32]} 20. Qb5 {[%emt 0:04:46]} Bh5 {[%emt 0:03:21]} 21. Rde1 {[%emt 0:04:09]} Qd7 {[%emt 0:01:48]} 22. Nd2 {[%emt 0:05:54]} a6 {[%emt 0:01:37]} 23. Qb6 {[%emt 0:01:37]} d5 {[%emt 0:03:58]} 24. Nxd5 {[%emt 0:04:30]} Bxd2 {[%emt 0:00:16]} 25. Nxf6 {[%emt 0:00:21]} gxf6 {[%emt 0:00:18]} 26. Re4 {[%emt 0:03:37]} Bf4 {[%emt 0:04:24]} 27. f3 {[%emt 0:03:04]} Bg6 {[%emt 0:07:17]} 28. Ree1 {[%emt 0:01:14]} Bf7 {[%emt 0:06:03]} 29. Bxf7 {[%emt 0:03:15]} Qxf7 {[%emt 0:00:08]} 30. Rd1 {[%emt 0:00:57]} Rg8 {[%emt 0:00:12]} 31. g3 {[%emt 0:05:01]} Qh5 {[%emt 0:02:00]} 32. Rf2 {[%emt 0:10:35]} e4 {[%emt 0:02:28]} 33. Rdf1 {[%emt 0:02:05]} Qg5 {[%emt 0:03:24]} 34. Re2 {[%emt 0:01:01]} Bxg3 {[%emt 0:00:58]} 35. hxg3 {[%emt 0:00:32]} Qxg3+ {[%emt 0:00:06]} 36. Kh1 {[%emt 0:00:07]} Qh3+ {[%emt 0:00:06]} 0-1

[Event "4th ChessMates Murmansk 2020"]
[Site "Murmansk"]
[Date "2020.03.13"]
[Round "2.17"]
[White "Poliato, Irina"]
[Black "Abbasov, Aziz"]
[Result "1-0"]
[ECO "A49"]
[WhiteElo "1588"]
[BlackElo "1478"]
[Annotator "NA RC"]
[PlyCount "63"]
[EventDate "2020.03.13"]
[EventType "team-tourn"]
[EventCountry "RUS"]
[SourceTitle "playchess.com"]
[Source "ChessBase"]
[SourceQuality "1"]
[TimeControl "5400+30"]

1. d4 {[%emt 0:00:00]} Nf6 {[%emt 0:00:00]} 2. Nf3 {[%emt 0:00:00]} g6 {[%emt 0:00:00]} 3. g3 {[%emt 0:00:00]} Bg7 {[%emt 0:00:00]} 4. Bg2 {[%emt 0:00:00]} d5 {[%emt 0:00:00]} 5. O-O {[%emt 0:00:06]} O-O {[%emt 0:00:00]} 6. Re1 {[%emt 0:00:32]} c6 {[%emt 0:00:19]} 7. Nc3 {[%emt 0:00:26]} Ne4 {[%emt 0:03:12]} 8. Nxe4 {[%emt 0:12:06]} dxe4 {[%emt 0:00:07]} 9. Nd2 {[%emt 0:00:07]} Bxd4 {[%emt 0:04:14]} 10. Nxe4 {[%emt 0:06:59]} Bf5 {[%emt 0:04:18]} 11. c3 {[%emt 0:01:17]} Bg7 {[%emt 0:01:41]} 12. Qb3 {[%emt 0:06:06]} Qc7 {[%emt 0:02:01]} 13. Bf4 {[%emt 0:06:53]} e5 {[%emt 0:00:11]} 14. Be3 {[%emt 0:03:55]} Nd7 {[%emt 0:03:18]} 15. Red1 {[%emt 0:10:31]} Bxe4 {[%emt 0:06:49]} 16. Bxe4 {[%emt 0:00:06]} Rfd8 {[%emt 0:00:43]} 17. Bg2 {[%emt 0:04:36]} Nb6 {[%emt 0:05:34]} 18. a4 {[%emt 0:15:58]} Nd7 {[%emt 0:02:35]} 19. Rd2 {[%emt 0:00:24]} Nf8 {[%emt 0:06:11]} 20. Rxd8 {[%emt 0:00:17]} Rxd8 {[%emt 0:00:09]} 21. Bxa7 {[%emt 0:00:49]} Qc8 {[%emt 0:03:03]} 22. Bb6 {[%emt 0:02:37]} Rd6 {[%emt 0:01:00]} 23. a5 {[%emt 0:02:01]} Ne6 {[%emt 0:04:31]} 24. Be3 {[%emt 0:03:57]} h5 {[%emt 0:03:01]} 25. Bh3 {[%emt 0:03:22]} Qc7 {[%emt 0:02:38]} 26. Bxe6 {[%emt 0:02:32]} Rxe6 {[%emt 0:01:10]} 27. Rd1 {[%emt 0:00:48]} Rd6 {[%emt 0:04:57]} 28. Rxd6 {[%emt 0:00:04]} Qxd6 {[%emt 0:00:11]} 29. Qxb7 {[%emt 0:00:25]} Qd1+ {[%emt 0:00:21]} 30. Kg2 {[%emt 0:00:06]} Qxe2 {[%emt 0:00:26]} 31. Qxc6 {[%emt 0:00:14]} Qxb2 {[%emt 0:00:21]} 32. a6 {[%emt 0:00:07]} 1-0

[Event "4th ChessMates Murmansk 2020"]
[Site "Murmansk"]
[Date "2020.03.13"]
[Round "2.18"]
[White "Khon, Ilya"]
[Black "Khmil, Fedor"]
[Result "0-1"]
[ECO "B13"]
[WhiteElo "1223"]
[BlackElo "1470"]
[Annotator "NA RC"]
[PlyCount "110"]
[EventDate "2020.03.13"]
[EventType "team-tourn"]
[EventCountry "RUS"]
[SourceTitle "playchess.com"]
[Source "ChessBase"]
[SourceQuality "1"]
[TimeControl "5400+30"]

1. e4 {[%emt 0:00:00]} c6 {[%emt 0:00:00]} 2. d4 {[%emt 0:00:00]} d5 {[%emt 0:00:00]} 3. exd5 {[%emt 0:00:00]} cxd5 {[%emt 0:00:00]} 4. Nf3 {[%emt 0:00:15]} Bg4 {[%emt 0:00:05]} 5. Bd3 {[%emt 0:01:03]} Nf6 {[%emt 0:00:21]} 6. O-O {[%emt 0:00:33]} e6 {[%emt 0:00:12]} 7. h3 {[%emt 0:04:20]} Bh5 {[%emt 0:00:38]} 8. Re1 {[%emt 0:00:19]} Be7 {[%emt 0:00:20]} 9. Bf4 {[%emt 0:00:24]} O-O {[%emt 0:00:14]} 10. Nbd2 {[%emt 0:00:47]} Nc6 {[%emt 0:00:19]} 11. c3 {[%emt 0:02:09]} Rc8 {[%emt 0:02:00]} 12. Rc1 {[%emt 0:08:35]} Qb6 {[%emt 0:02:53]} 13. Nb3 {[%emt 0:11:34]} Na5 {[%emt 0:04:54]} 14. Be2 {[%emt 0:11:17]} Nc4 {[%emt 0:03:07]} 15. Qc2 {[%emt 0:04:50]} Bg6 {[%emt 0:00:27]} 16. Bd3 {[%emt 0:04:56]} Bxd3 {[%emt 0:00:23]} 17. Qxd3 {[%emt 0:00:06]} Nxb2 {[%emt 0:00:11]} 18. Qe2 {[%emt 0:01:57]} Nc4 {[%emt 0:00:53]} 19. Bg5 {[%emt 0:08:28]} h6 {[%emt 0:01:08]} 20. Bxf6 {[%emt 0:00:19]} Bxf6 {[%emt 0:00:12]} 21. Nc5 {[%emt 0:00:12]} Qc6 {[%emt 0:02:45]} 22. Rb1 {[%emt 0:09:20]} b6 {[%emt 0:02:50]} 23. Nd3 {[%emt 0:00:17]} Rc7 {[%emt 0:07:47]} 24. Nb4 {[%emt 0:06:01]} Qa4 {[%emt 0:01:27]} 25. Rec1 {[%emt 0:02:08]} Rfc8 {[%emt 0:01:22]} 26. Ne5 {[%emt 0:17:03]} Nxe5 {[%emt 0:00:52]} 27. dxe5 {[%emt 0:00:09]} Bg5 {[%emt 0:00:14]} 28. Na6 {[%emt 0:01:11]} Rc4 {[%emt 0:00:46]} 29. Re1 {[%emt 0:02:10]} Qxa6 {[%emt 0:00:12]} 30. Rb3 {[%emt 0:01:38]} Qa5 31. Qb2 {[%emt 0:02:10]} Rxc3 {[%emt 0:00:54]} 32. Rxc3 {[%emt 0:00:08]} Qxc3 {[%emt 0:00:07]} 33. Qe2 {[%emt 0:00:09]} Qxe1+ {[%emt 0:00:08]} 34. Qxe1 {[%emt 0:00:07]} Rc1 {[%emt 0:00:05]} 35. Qxc1 {[%emt 0:00:20]} Bxc1 {[%emt 0:00:05]} 36. Kf1 {[%emt 0:00:07]} Bf4 {[%emt 0:00:06]} 37. g3 {[%emt 0:00:15]} Bxe5 {[%emt 0:00:05]} 38. f4 {[%emt 0:00:04]} Bc3 {[%emt 0:00:08]} 39. Ke2 {[%emt 0:00:08]} e5 {[%emt 0:00:13]} 40. fxe5 {[%emt 0:00:46]} Bxe5 {[%emt 0:00:05]} 41. g4 {[%emt 0:00:03]} g6 {[%emt 0:00:20]} 42. Kd3 {[%emt 0:00:04]} f5 {[%emt 0:00:08]} 43. gxf5 {[%emt 0:00:09]} gxf5 {[%emt 0:00:03]} 44. Ke2 {[%emt 0:00:06]} d4 {[%emt 0:00:09]} 45. Kd3 {[%emt 0:00:22]} Kf7 {[%emt 0:00:06]} 46. Ke2 {[%emt 0:01:22]} Kf6 {[%emt 0:00:10]} 47. Kf3 {[%emt 0:00:07]} b5 {[%emt 0:00:20]} 48. h4 {[%emt 0:00:23]} b4 {[%emt 0:00:06]} 49. h5 {[%emt 0:00:06]} a5 {[%emt 0:00:05]} 50. Ke2 {[%emt 0:00:42]} a4 {[%emt 0:00:05]} 51. Kd2 {[%emt 0:00:04]} b3 {[%emt 0:00:09]} 52. a3 {[%emt 0:00:07]} b2 {[%emt 0:00:18]} 53. Ke2 {[%emt 0:00:07]} b1=Q 54. Kf3 {[%emt 0:00:43]} Qe4+ {[%emt 0:00:22]} 55. Kf2 {[%emt 0:00:17]} Qe3+ {[%emt 0:00:13]} 0-1